[Event "Titled Tuesday Blitz March 01 Early 2022"]
[White "Shvedova, Alexandra"]
[Black "Freitag, Manfred"]
[WhiteFideId "54154782"]
[BlackFideId "1602004"]
[WhiteElo "1920"]
[BlackElo "2275"]
[Result "1-0"]
[Round "03"]
[TimeControl "180+1"]
[Date "2022.03.01"]
[WhiteClock "0:00:59"]
[BlackClock "0:00:52"]

1. e4 {[%clk 0:03:00]}  c6 {[%clk 0:02:59]} 2. d4 {[%clk 0:03:00]}  d5 {[%clk 0:02:59]} 3. e5 {[%clk 0:03:01]}  Bf5 {[%clk 0:02:59]} 4. h4 {[%clk 0:03:01]}  h5 {[%clk 0:02:58]} 5. Bd3 {[%clk 0:03:00]}  Bxd3 {[%clk 0:02:59]} 6. Qxd3 {[%clk 0:03:01]}  Qa5+ {[%clk 0:02:58]} 7. Nd2 {[%clk 0:03:01]}  e6 {[%clk 0:02:59]} 8. Nf3 {[%clk 0:03:01]}  Qa6 {[%clk 0:02:59]} 9. c4 {[%clk 0:03:01]}  Nh6 {[%clk 0:02:58]} 10. b3 {[%clk 0:02:58]}  Nf5 {[%clk 0:02:58]} 11. a4 {[%clk 0:02:53]}  Qa5 {[%clk 0:02:54]} 12. O-O {[%clk 0:02:49]}  Be7 {[%clk 0:02:53]} 13. g3 {[%clk 0:02:49]}  Na6 {[%clk 0:02:52]} 14. Ba3 {[%clk 0:02:43]}  Bxa3 {[%clk 0:02:51]} 15. Rxa3 {[%clk 0:02:44]}  O-O {[%clk 0:02:38]} 16. Ng5 {[%clk 0:02:29]}  dxc4 {[%clk 0:02:19]} 17. bxc4 {[%clk 0:02:07]}  Rad8 {[%clk 0:02:18]} 18. Ndf3 {[%clk 0:02:02]}  g6 {[%clk 0:02:02]} 19. Ne4 {[%clk 0:01:59]}  Kg7 {[%clk 0:02:00]} 20. Nf6 {[%clk 0:01:48]}  Nxd4 {[%clk 0:01:54]} 21. Ng5 {[%clk 0:01:18]}  Qxe5 {[%clk 0:01:28]} 22. Nxh5+ {[%clk 0:01:08]}  Kh6 {[%clk 0:01:04]} 23. Nf4 {[%clk 0:01:03]}  Nc5 {[%clk 0:00:52]} 24. Nxf7+ {[%clk 0:00:59]} 1-0


[Site "https://www.chess.com"]

[Event "Titled Tuesday Blitz March 01 Early 2022"]
[White "Silva, Miguel Antonio Neto"]
[Black "De Souza Sa, Apolo"]
[WhiteFideId "1911929"]
[BlackFideId "324225390"]
[WhiteElo "2204"]
[BlackElo "1828"]
[Result "1-0"]
[Round "03"]
[TimeControl "180+1"]
[Date "2022.03.01"]
[WhiteClock "0:01:19"]
[BlackClock "0:00:53"]

1. e4 {[%clk 0:02:54]}  c5 {[%clk 0:02:59]} 2. Nc3 {[%clk 0:02:52]}  Nc6 {[%clk 0:02:59]} 3. g3 {[%clk 0:02:50]}  g6 {[%clk 0:02:57]} 4. Bg2 {[%clk 0:02:50]}  Bg7 {[%clk 0:02:58]} 5. d3 {[%clk 0:02:50]}  Nf6 {[%clk 0:02:58]} 6. h3 {[%clk 0:02:47]}  O-O {[%clk 0:02:57]} 7. Be3 {[%clk 0:02:40]}  Nd4 {[%clk 0:02:57]} 8. Qd2 {[%clk 0:02:32]}  Qb6 {[%clk 0:02:50]} 9. Nd1 {[%clk 0:02:30]}  e5 {[%clk 0:02:37]} 10. c3 {[%clk 0:02:25]}  Ne6 {[%clk 0:02:37]} 11. Ne2 {[%clk 0:02:25]}  Rd8 {[%clk 0:02:35]} 12. c4 {[%clk 0:02:20]}  Nd4 {[%clk 0:02:31]} 13. Ndc3 {[%clk 0:02:16]}  d6 {[%clk 0:02:30]} 14. g4 {[%clk 0:02:08]}  Be6 {[%clk 0:02:28]} 15. f4 {[%clk 0:02:04]}  Nxe2 {[%clk 0:02:14]} 16. Nxe2 {[%clk 0:02:03]}  exf4 {[%clk 0:02:14]} 17. Nxf4 {[%clk 0:01:59]}  Nd7 {[%clk 0:02:11]} 18. Rb1 {[%clk 0:01:55]}  Ne5 {[%clk 0:02:08]} 19. b3 {[%clk 0:01:52]}  Nc6 {[%clk 0:01:53]} 20. O-O {[%clk 0:01:52]}  Nd4 {[%clk 0:01:52]} 21. b4 {[%clk 0:01:46]}  Qc7 {[%clk 0:01:44]} 22. a3 {[%clk 0:01:43]}  b6 {[%clk 0:01:35]} 23. e5 {[%clk 0:01:33]}  Rac8 {[%clk 0:01:09]} 24. Bxd4 {[%clk 0:01:29]}  dxe5 {[%clk 0:00:54]} 25. Nxe6 {[%clk 0:01:25]}  fxe6 {[%clk 0:00:54]} 26. Be3 {[%clk 0:01:22]}  Qd6 {[%clk 0:00:53]} 27. Be4 {[%clk 0:01:19]} 1-0


[Site "https://www.chess.com"]

[Event "Titled Tuesday Blitz March 01 Early 2022"]
[White "Tarhan, Adar"]
[Black "Pein, Jonathan"]
[WhiteFideId "34544712"]
[BlackFideId "417092"]
[WhiteElo "1802"]
[BlackElo "2140"]
[Result "1-0"]
[Round "03"]
[TimeControl "180+1"]
[Date "2022.03.01"]
[WhiteClock "0:00:53"]
[BlackClock "0:01:03"]

1. b3 {[%clk 0:02:59]}  d5 {[%clk 0:02:54]} 2. Bb2 {[%clk 0:03:00]}  c5 {[%clk 0:02:54]} 3. f4 {[%clk 0:02:59]}  Nc6 {[%clk 0:02:55]} 4. Nf3 {[%clk 0:02:59]}  e6 {[%clk 0:02:53]} 5. e3 {[%clk 0:02:59]}  Nf6 {[%clk 0:02:52]} 6. Bb5 {[%clk 0:02:59]}  Bd7 {[%clk 0:02:53]} 7. O-O {[%clk 0:02:58]}  Be7 {[%clk 0:02:53]} 8. d3 {[%clk 0:02:57]}  O-O {[%clk 0:02:50]} 9. Bxc6 {[%clk 0:02:58]}  Bxc6 {[%clk 0:02:50]} 10. Nbd2 {[%clk 0:02:58]}  b5 {[%clk 0:02:45]} 11. Ne5 {[%clk 0:02:57]}  Be8 {[%clk 0:02:45]} 12. g4 {[%clk 0:02:57]}  Nd7 {[%clk 0:02:41]} 13. Nxd7 {[%clk 0:02:46]}  Bxd7 {[%clk 0:02:39]} 14. Nf3 {[%clk 0:02:47]}  f6 {[%clk 0:02:31]} 15. Kh1 {[%clk 0:02:44]}  Bc6 {[%clk 0:02:30]} 16. Qe2 {[%clk 0:02:42]}  Rc8 {[%clk 0:02:29]} 17. Rg1 {[%clk 0:02:38]}  Kh8 {[%clk 0:02:29]} 18. g5 {[%clk 0:02:36]}  fxg5 {[%clk 0:02:28]} 19. Nxg5 {[%clk 0:02:36]}  Bxg5 {[%clk 0:02:24]} 20. Rxg5 {[%clk 0:02:37]}  d4+ {[%clk 0:02:24]} 21. Kg1 {[%clk 0:02:31]}  Rc7 {[%clk 0:02:18]} 22. exd4 {[%clk 0:02:19]}  Rxf4 {[%clk 0:02:15]} 23. Qe5 {[%clk 0:02:09]}  Rcf7 {[%clk 0:01:51]} 24. dxc5 {[%clk 0:02:00]}  Qf8 {[%clk 0:01:46]} 25. Qe2 {[%clk 0:01:47]}  Rf2 {[%clk 0:01:46]} 26. Qxf2 {[%clk 0:01:35]}  Rxf2 {[%clk 0:01:38]} 27. Bxg7+ {[%clk 0:01:35]}  Qxg7 {[%clk 0:01:33]} 28. Rxg7 {[%clk 0:01:36]}  Rxc2 {[%clk 0:01:32]} 29. Rg3 {[%clk 0:01:30]}  Rxc5 {[%clk 0:01:29]} 30. Rf1 {[%clk 0:01:30]}  h5 {[%clk 0:01:20]} 31. Rf8+ {[%clk 0:01:28]}  Kh7 {[%clk 0:01:20]} 32. Rf7+ {[%clk 0:01:27]}  Kh6 {[%clk 0:01:19]} 33. h4 {[%clk 0:01:23]}  Rc1+ {[%clk 0:01:15]} 34. Rf1 {[%clk 0:01:23]}  Rc2 {[%clk 0:01:14]} 35. Rf6+ {[%clk 0:01:09]}  Kh7 {[%clk 0:01:14]} 36. Rxe6 {[%clk 0:01:09]}  a5 {[%clk 0:01:09]} 37. Re7+ {[%clk 0:01:03]}  Kh8 {[%clk 0:01:06]} 38. Rg5 {[%clk 0:00:58]}  Bf3 {[%clk 0:01:03]} 39. Rf5 {[%clk 0:00:53]} 1-0


[Site "https://www.chess.com"]

[Event "Titled Tuesday Blitz March 01 Early 2022"]
[White "Tari, Aryan"]
[Black "Szpar, Milosz"]
[WhiteFideId "1510045"]
[BlackFideId "1184989"]
[WhiteElo "2567"]
[BlackElo "2447"]
[Result "1-0"]
[Round "03"]
[TimeControl "180+1"]
[Date "2022.03.01"]
[WhiteClock "0:00:31"]
[BlackClock "0:00:33"]

1. c4 {[%clk 0:02:53]}  e6 {[%clk 0:02:59]} 2. g3 {[%clk 0:02:52]}  d5 {[%clk 0:02:59]} 3. Bg2 {[%clk 0:02:53]}  Nf6 {[%clk 0:02:59]} 4. d4 {[%clk 0:02:49]}  Be7 {[%clk 0:02:59]} 5. Nf3 {[%clk 0:02:50]}  O-O {[%clk 0:02:59]} 6. O-O {[%clk 0:02:50]}  c6 {[%clk 0:03:00]} 7. b3 {[%clk 0:02:50]}  Nbd7 {[%clk 0:03:00]} 8. Bb2 {[%clk 0:02:50]}  b6 {[%clk 0:03:00]} 9. Nc3 {[%clk 0:02:48]}  Ba6 {[%clk 0:03:00]} 10. Nd2 {[%clk 0:02:49]}  Rc8 {[%clk 0:02:59]} 11. e4 {[%clk 0:02:34]}  dxc4 {[%clk 0:02:59]} 12. Nxc4 {[%clk 0:02:32]}  Re8 {[%clk 0:02:43]} 13. Re1 {[%clk 0:02:29]}  Bb4 {[%clk 0:02:39]} 14. a3 {[%clk 0:02:28]}  Bxc3 {[%clk 0:02:39]} 15. Bxc3 {[%clk 0:02:29]}  Bxc4 {[%clk 0:02:35]} 16. bxc4 {[%clk 0:02:30]}  e5 {[%clk 0:02:31]} 17. f4 {[%clk 0:02:25]}  exd4 {[%clk 0:02:26]} 18. Bxd4 {[%clk 0:02:26]}  Nf8 {[%clk 0:02:24]} 19. e5 {[%clk 0:02:23]}  N6d7 {[%clk 0:02:22]} 20. f5 {[%clk 0:02:20]}  Qg5 {[%clk 0:02:19]} 21. Qf3 {[%clk 0:02:15]}  Nc5 {[%clk 0:01:54]} 22. h4 {[%clk 0:02:07]}  Qd8 {[%clk 0:01:53]} 23. Rad1 {[%clk 0:02:06]}  Qc7 {[%clk 0:01:52]} 24. g4 {[%clk 0:01:25]}  Rcd8 {[%clk 0:01:51]} 25. Qf4 {[%clk 0:01:26]}  f6 {[%clk 0:01:43]} 26. Kh2 {[%clk 0:00:38]}  Nb3 {[%clk 0:01:21]} 27. Bc3 {[%clk 0:00:32]}  Rxd1 {[%clk 0:01:21]} 28. Rxd1 {[%clk 0:00:32]}  fxe5 {[%clk 0:01:21]} 29. Qg3 {[%clk 0:00:33]}  Nc5 {[%clk 0:01:19]} 30. g5 {[%clk 0:00:34]}  Kh8 {[%clk 0:01:10]} 31. h5 {[%clk 0:00:32]}  Qf7 {[%clk 0:01:08]} 32. Qg4 {[%clk 0:00:32]}  h6 {[%clk 0:00:51]} 33. Bxc6 {[%clk 0:00:31]}  Rc8 {[%clk 0:00:41]} 34. Bd5 {[%clk 0:00:31]}  Qc7 {[%clk 0:00:41]} 35. gxh6 {[%clk 0:00:32]}  Re8 {[%clk 0:00:35]} 36. Rg1 {[%clk 0:00:31]}  Re7 {[%clk 0:00:33]} 37. f6 {[%clk 0:00:31]} 1-0


[Site "https://www.chess.com"]

[Event "Titled Tuesday Blitz March 01 Early 2022"]
[White "Tologon tegin, Semetei"]
[Black "Jakubowska, Anna"]
[WhiteFideId "13800574"]
[BlackFideId "1121952"]
[WhiteElo "2258"]
[BlackElo "1924"]
[Result "1-0"]
[Round "03"]
[TimeControl "180+1"]
[Date "2022.03.01"]
[WhiteClock "0:00:27"]
[BlackClock "0:00:14"]

1. e4 {[%clk 0:03:00]}  c6 {[%clk 0:02:53]} 2. d3 {[%clk 0:02:56]}  d5 {[%clk 0:02:53]} 3. Nd2 {[%clk 0:02:57]}  g6 {[%clk 0:02:53]} 4. Ngf3 {[%clk 0:02:56]}  Bg7 {[%clk 0:02:53]} 5. g3 {[%clk 0:02:55]}  Bg4 {[%clk 0:02:53]} 6. Bg2 {[%clk 0:02:55]}  e6 {[%clk 0:02:53]} 7. O-O {[%clk 0:02:55]}  Ne7 {[%clk 0:02:53]} 8. h3 {[%clk 0:02:55]}  Bxf3 {[%clk 0:02:52]} 9. Qxf3 {[%clk 0:02:55]}  O-O {[%clk 0:02:51]} 10. Qe2 {[%clk 0:02:54]}  Nd7 {[%clk 0:02:47]} 11. f4 {[%clk 0:02:53]}  Qb6+ {[%clk 0:02:18]} 12. Kh1 {[%clk 0:02:51]}  Rad8 {[%clk 0:02:18]} 13. g4 {[%clk 0:02:40]}  Rfe8 {[%clk 0:01:57]} 14. e5 {[%clk 0:02:29]}  g5 {[%clk 0:01:56]} 15. Nf3 {[%clk 0:02:04]}  gxf4 {[%clk 0:01:55]} 16. Bxf4 {[%clk 0:02:04]}  Ng6 {[%clk 0:01:55]} 17. Bg3 {[%clk 0:02:03]}  Qxb2 {[%clk 0:01:49]} 18. Rab1 {[%clk 0:02:00]}  Qxa2 {[%clk 0:01:47]} 19. Rxb7 {[%clk 0:01:59]}  Rf8 {[%clk 0:01:36]} 20. h4 {[%clk 0:01:53]}  Qa4 {[%clk 0:01:17]} 21. d4 {[%clk 0:01:46]}  c5 {[%clk 0:01:08]} 22. h5 {[%clk 0:01:34]}  Ne7 {[%clk 0:01:04]} 23. c3 {[%clk 0:01:30]}  cxd4 {[%clk 0:01:00]} 24. cxd4 {[%clk 0:01:29]}  Nc6 {[%clk 0:01:00]} 25. Qe3 {[%clk 0:01:18]}  h6 {[%clk 0:00:52]} 26. Bh4 {[%clk 0:01:16]}  Qa6 {[%clk 0:00:48]} 27. Rfb1 {[%clk 0:01:00]}  Rb8 {[%clk 0:00:47]} 28. Rxb8 {[%clk 0:00:47]}  Rxb8 {[%clk 0:00:46]} 29. Rxb8+ {[%clk 0:00:47]}  Ndxb8 {[%clk 0:00:46]} 30. g5 {[%clk 0:00:48]}  Kh7 {[%clk 0:00:26]} 31. gxh6 {[%clk 0:00:45]}  Bxh6 {[%clk 0:00:26]} 32. Bg5 {[%clk 0:00:40]}  Bxg5 {[%clk 0:00:20]} 33. Nxg5+ {[%clk 0:00:40]}  Kg7 {[%clk 0:00:20]} 34. h6+ {[%clk 0:00:32]}  Kxh6 {[%clk 0:00:20]} 35. Nxe6+ {[%clk 0:00:32]}  Kg6 {[%clk 0:00:14]} 36. Qg3+ {[%clk 0:00:32]}  Kf5 {[%clk 0:00:14]} 37. Ng7# {[%clk 0:00:27]} 1-0


[Site "https://www.chess.com"]

[Event "Titled Tuesday Blitz March 01 Early 2022"]
[White "Tomiello, Mateus Costamilan"]
[Black "Gerbelli Neto, Eduardo"]
[WhiteFideId "22701958"]
[BlackFideId "2103281"]
[WhiteElo "1975"]
[BlackElo "2178"]
[Result "1-0"]
[Round "03"]
[TimeControl "180+1"]
[Date "2022.03.01"]
[WhiteClock "0:01:16"]
[BlackClock "0:00:44"]

1. d4 {[%clk 0:03:00]}  d5 {[%clk 0:02:56]} 2. c4 {[%clk 0:03:01]}  c6 {[%clk 0:02:55]} 3. Nf3 {[%clk 0:03:01]}  Nf6 {[%clk 0:02:55]} 4. Nc3 {[%clk 0:02:59]}  e6 {[%clk 0:02:56]} 5. e3 {[%clk 0:02:59]}  Nbd7 {[%clk 0:02:55]} 6. Qc2 {[%clk 0:02:58]}  Bb4 {[%clk 0:02:47]} 7. a3 {[%clk 0:02:55]}  Bxc3+ {[%clk 0:02:47]} 8. Qxc3 {[%clk 0:02:56]}  Ne4 {[%clk 0:02:46]} 9. Qc2 {[%clk 0:02:55]}  O-O {[%clk 0:02:47]} 10. Bd3 {[%clk 0:02:55]}  f5 {[%clk 0:02:47]} 11. O-O {[%clk 0:02:48]}  Ndf6 {[%clk 0:02:42]} 12. Ne5 {[%clk 0:02:47]}  Bd7 {[%clk 0:02:42]} 13. f3 {[%clk 0:02:46]}  Nd6 {[%clk 0:02:41]} 14. b3 {[%clk 0:02:42]}  Nf7 {[%clk 0:02:33]} 15. Nxf7 {[%clk 0:02:40]}  Rxf7 {[%clk 0:02:34]} 16. Bb2 {[%clk 0:02:38]}  Rc8 {[%clk 0:02:34]} 17. Rae1 {[%clk 0:02:35]}  Qe7 {[%clk 0:02:14]} 18. b4 {[%clk 0:02:28]}  Be8 {[%clk 0:02:06]} 19. e4 {[%clk 0:02:22]}  fxe4 {[%clk 0:02:04]} 20. fxe4 {[%clk 0:02:22]}  dxe4 {[%clk 0:01:59]} 21. Bxe4 {[%clk 0:02:21]}  Nxe4 {[%clk 0:01:59]} 22. Qxe4 {[%clk 0:02:21]}  Rxf1+ {[%clk 0:01:58]} 23. Kxf1 {[%clk 0:02:08]}  Bf7 {[%clk 0:01:53]} 24. Kg1 {[%clk 0:02:04]}  Rd8 {[%clk 0:01:45]} 25. d5 {[%clk 0:01:58]}  cxd5 {[%clk 0:01:43]} 26. cxd5 {[%clk 0:01:58]}  Bg6 {[%clk 0:01:18]} 27. Qe5 {[%clk 0:01:46]}  Rc8 {[%clk 0:00:56]} 28. d6 {[%clk 0:01:32]}  Qd7 {[%clk 0:00:50]} 29. Qxe6+ {[%clk 0:01:25]}  Qxe6 {[%clk 0:00:48]} 30. Rxe6 {[%clk 0:01:26]}  Rc2 {[%clk 0:00:44]} 31. d7 {[%clk 0:01:19]}  Rd2 {[%clk 0:00:44]} 32. Re8+ {[%clk 0:01:16]} 1-0


[Site "https://www.chess.com"]

[Event "Titled Tuesday Blitz March 01 Early 2022"]
[White "Tsyhanchuk, Stanislav"]
[Black "Sahin, Handenur"]
[WhiteFideId "13505130"]
[BlackFideId "6334865"]
[WhiteElo "2078"]
[BlackElo "2178"]
[Result "1-0"]
[Round "03"]
[TimeControl "180+1"]
[Date "2022.03.01"]
[WhiteClock "0:01:07"]
[BlackClock "0:00:32"]

1. d4 {[%clk 0:03:00]}  d5 {[%clk 0:02:59]} 2. c4 {[%clk 0:03:00]}  c6 {[%clk 0:02:59]} 3. Nc3 {[%clk 0:03:00]}  Nf6 {[%clk 0:02:59]} 4. e3 {[%clk 0:03:00]}  Bf5 {[%clk 0:02:57]} 5. cxd5 {[%clk 0:02:58]}  cxd5 {[%clk 0:02:57]} 6. Qb3 {[%clk 0:02:58]}  Bc8 {[%clk 0:02:55]} 7. Nf3 {[%clk 0:02:57]}  Nc6 {[%clk 0:02:54]} 8. Bb5 {[%clk 0:02:55]}  e6 {[%clk 0:02:49]} 9. Ne5 {[%clk 0:02:55]}  Bd7 {[%clk 0:02:47]} 10. O-O {[%clk 0:02:51]}  Bd6 {[%clk 0:02:45]} 11. f4 {[%clk 0:02:49]}  O-O {[%clk 0:02:40]} 12. Bd2 {[%clk 0:02:46]}  a6 {[%clk 0:02:37]} 13. Bd3 {[%clk 0:02:43]}  b5 {[%clk 0:02:36]} 14. Rac1 {[%clk 0:02:40]}  Na5 {[%clk 0:02:36]} 15. Qd1 {[%clk 0:02:33]}  Rc8 {[%clk 0:02:32]} 16. g4 {[%clk 0:02:33]}  b4 {[%clk 0:02:24]} 17. Nb1 {[%clk 0:02:26]}  Rxc1 {[%clk 0:02:20]} 18. Bxc1 {[%clk 0:02:26]}  Ne4 {[%clk 0:02:18]} 19. g5 {[%clk 0:02:17]}  Bxe5 {[%clk 0:02:13]} 20. dxe5 {[%clk 0:02:15]}  Bb5 {[%clk 0:02:07]} 21. Bxb5 {[%clk 0:02:10]}  axb5 {[%clk 0:02:07]} 22. Nd2 {[%clk 0:02:09]}  Nxd2 {[%clk 0:02:03]} 23. Bxd2 {[%clk 0:02:09]}  Qe7 {[%clk 0:02:01]} 24. Qe2 {[%clk 0:02:06]}  Nc4 {[%clk 0:01:42]} 25. Rf3 {[%clk 0:02:02]}  Ra8 {[%clk 0:01:38]} 26. Rh3 {[%clk 0:01:59]}  Nxd2 {[%clk 0:01:24]} 27. Qxd2 {[%clk 0:01:46]}  Rxa2 {[%clk 0:01:23]} 28. Qd3 {[%clk 0:01:40]}  Ra1+ {[%clk 0:01:17]} 29. Kg2 {[%clk 0:01:38]}  f5 {[%clk 0:01:13]} 30. gxf6 {[%clk 0:01:34]}  gxf6 {[%clk 0:01:13]} 31. Rg3+ {[%clk 0:01:34]}  Kh8 {[%clk 0:01:11]} 32. Qxb5 {[%clk 0:01:34]}  Ra8 {[%clk 0:01:02]} 33. Qc6 {[%clk 0:01:29]}  Rg8 {[%clk 0:00:53]} 34. f5 {[%clk 0:01:15]}  Rxg3+ {[%clk 0:00:49]} 35. hxg3 {[%clk 0:01:15]}  fxe5 {[%clk 0:00:45]} 36. fxe6 {[%clk 0:01:14]}  d4 {[%clk 0:00:41]} 37. Qd7 {[%clk 0:01:10]}  Qc5 {[%clk 0:00:32]} 38. e7 {[%clk 0:01:08]}  Qc2+ {[%clk 0:00:32]} 39. Kh3 {[%clk 0:01:07]} 1-0


[Site "https://www.chess.com"]

[Event "Titled Tuesday Blitz March 01 Early 2022"]
[White "Vantika, Agrawal"]
[Black "Shukhman, Anna"]
[WhiteFideId "25050389"]
[BlackFideId "54180058"]
[WhiteElo "2075"]
[BlackElo "1628"]
[Result "1-0"]
[Round "03"]
[TimeControl "180+1"]
[Date "2022.03.01"]
[WhiteClock "0:00:05"]
[BlackClock "0:00:12"]

1. d4 {[%clk 0:03:00]}  Nf6 {[%clk 0:02:58]} 2. Nf3 {[%clk 0:03:00]}  g6 {[%clk 0:02:58]} 3. Nc3 {[%clk 0:02:59]}  d5 {[%clk 0:02:57]} 4. Bf4 {[%clk 0:02:58]}  Bg7 {[%clk 0:02:54]} 5. Nb5 {[%clk 0:02:57]}  Na6 {[%clk 0:02:53]} 6. e3 {[%clk 0:02:57]}  O-O {[%clk 0:02:51]} 7. h3 {[%clk 0:02:56]}  Ne4 {[%clk 0:02:41]} 8. Bd3 {[%clk 0:02:32]}  c6 {[%clk 0:02:22]} 9. Na3 {[%clk 0:02:32]}  Qa5+ {[%clk 0:01:58]} 10. c3 {[%clk 0:02:31]}  b5 {[%clk 0:01:49]} 11. Bxe4 {[%clk 0:01:54]}  dxe4 {[%clk 0:01:50]} 12. Ne5 {[%clk 0:01:54]}  Bb7 {[%clk 0:01:46]} 13. O-O {[%clk 0:01:28]}  Rad8 {[%clk 0:01:39]} 14. Qb3 {[%clk 0:01:25]}  Nc7 {[%clk 0:01:36]} 15. Nac4 {[%clk 0:01:11]}  Qa6 {[%clk 0:01:23]} 16. Nd2 {[%clk 0:01:07]}  c5 {[%clk 0:01:12]} 17. a4 {[%clk 0:01:05]}  Bd5 {[%clk 0:01:05]} 18. Qa3 {[%clk 0:01:04]}  cxd4 {[%clk 0:01:01]} 19. exd4 {[%clk 0:00:59]}  Ne6 {[%clk 0:01:00]} 20. Bh2 {[%clk 0:00:45]}  bxa4 {[%clk 0:00:47]} 21. Qxa4 {[%clk 0:00:42]}  Qe2 {[%clk 0:00:46]} 22. Ndc4 {[%clk 0:00:36]}  f5 {[%clk 0:00:41]} 23. Rfe1 {[%clk 0:00:29]}  Qh5 {[%clk 0:00:39]} 24. Qxa7 {[%clk 0:00:23]}  f4 {[%clk 0:00:35]} 25. Qxe7 {[%clk 0:00:16]}  Rde8 {[%clk 0:00:35]} 26. Qd7 {[%clk 0:00:13]}  Bxc4 {[%clk 0:00:35]} 27. Nxc4 {[%clk 0:00:12]}  e3 {[%clk 0:00:28]} 28. fxe3 {[%clk 0:00:11]}  f3 {[%clk 0:00:28]} 29. Rf1 {[%clk 0:00:08]}  fxg2 {[%clk 0:00:26]} 30. Rxf8+ {[%clk 0:00:08]}  Nxf8 {[%clk 0:00:26]} 31. Qxe8 {[%clk 0:00:08]}  Qf3 {[%clk 0:00:26]} 32. Nd2 {[%clk 0:00:06]}  Qe2 {[%clk 0:00:25]} 33. Qd7 {[%clk 0:00:04]}  Qxd2 {[%clk 0:00:23]} 34. Qd5+ {[%clk 0:00:03]}  Kh8 {[%clk 0:00:23]} 35. Qxg2 {[%clk 0:00:04]}  Qxe3+ {[%clk 0:00:22]} 36. Qf2 {[%clk 0:00:05]}  Qg5+ {[%clk 0:00:22]} 37. Qg2 {[%clk 0:00:04]}  Qe3+ {[%clk 0:00:21]} 38. Kh1 {[%clk 0:00:05]}  h5 {[%clk 0:00:18]} 39. Rf1 {[%clk 0:00:05]}  Kh7 {[%clk 0:00:17]} 40. Be5 {[%clk 0:00:06]}  Bxe5 {[%clk 0:00:15]} 41. dxe5 {[%clk 0:00:07]}  Ne6 {[%clk 0:00:14]} 42. b4 {[%clk 0:00:07]}  Qxe5 {[%clk 0:00:13]} 43. Qb7+ {[%clk 0:00:05]}  Kh6 {[%clk 0:00:13]} 44. Qf3 {[%clk 0:00:05]}  Ng5 {[%clk 0:00:12]} 45. Qf8+ {[%clk 0:00:04]}  Kh7 {[%clk 0:00:12]} 46. Qf4 {[%clk 0:00:03]}  Qd5+ {[%clk 0:00:12]} 47. Kh2 {[%clk 0:00:04]}  Qa2+ {[%clk 0:00:11]} 48. Rf2 {[%clk 0:00:03]}  Qd5 {[%clk 0:00:11]} 49. h4 {[%clk 0:00:03]}  Ne4 {[%clk 0:00:10]} 50. Qf7+ {[%clk 0:00:03]}  Qxf7 {[%clk 0:00:11]} 51. Rxf7+ {[%clk 0:00:04]}  Kg8 {[%clk 0:00:11]} 52. Rc7 {[%clk 0:00:04]}  Nf6 {[%clk 0:00:11]} 53. b5 {[%clk 0:00:04]}  Ng4+ {[%clk 0:00:12]} 54. Kg3 {[%clk 0:00:04]}  Kf8 {[%clk 0:00:12]} 55. b6 {[%clk 0:00:04]}  Ke8 {[%clk 0:00:12]} 56. b7 {[%clk 0:00:05]} 1-0


[Site "https://www.chess.com"]

[Event "Titled Tuesday Blitz March 01 Early 2022"]
[White "Viani Antonio Dcunha"]
[Black "Dounis, Alexandros"]
[WhiteFideId "5027330"]
[BlackFideId "4213238"]
[WhiteElo "2366"]
[BlackElo "2195"]
[Result "0-1"]
[Round "03"]
[TimeControl "180+1"]
[Date "2022.03.01"]
[WhiteClock "0:00:23"]
[BlackClock "0:00:42"]

1. e4 {[%clk 0:03:00]}  e5 {[%clk 0:02:59]} 2. Nf3 {[%clk 0:03:00]}  Nc6 {[%clk 0:02:59]} 3. d4 {[%clk 0:03:00]}  exd4 {[%clk 0:02:59]} 4. Nxd4 {[%clk 0:03:01]}  Bb4+ {[%clk 0:02:50]} 5. c3 {[%clk 0:02:59]}  Bc5 {[%clk 0:02:49]} 6. Be3 {[%clk 0:02:59]}  Bb6 {[%clk 0:02:49]} 7. Bc4 {[%clk 0:02:46]}  Nf6 {[%clk 0:02:49]} 8. Nd2 {[%clk 0:02:43]}  O-O {[%clk 0:02:49]} 9. O-O {[%clk 0:02:40]}  Re8 {[%clk 0:02:49]} 10. Re1 {[%clk 0:02:18]}  Nxe4 {[%clk 0:02:43]} 11. Nxc6 {[%clk 0:01:37]}  bxc6 {[%clk 0:02:36]} 12. Nxe4 {[%clk 0:01:33]}  Rxe4 {[%clk 0:02:34]} 13. Bxf7+ {[%clk 0:01:23]}  Kh8 {[%clk 0:02:20]} 14. Qh5 {[%clk 0:01:10]}  Bxe3 {[%clk 0:02:08]} 15. Bg6 {[%clk 0:00:52]}  Rh4 {[%clk 0:02:06]} 16. Qe5 {[%clk 0:00:35]}  d6 {[%clk 0:01:41]} 17. Qxe3 {[%clk 0:00:34]}  hxg6 {[%clk 0:01:40]} 18. Qg3 {[%clk 0:00:29]}  Bf5 {[%clk 0:01:33]} 19. Re3 {[%clk 0:00:27]}  Qf6 {[%clk 0:01:29]} 20. Rae1 {[%clk 0:00:25]}  Rf8 {[%clk 0:01:24]} 21. Re7 {[%clk 0:00:25]}  Rg4 {[%clk 0:01:11]} 22. Qh3+ {[%clk 0:00:24]}  Kg8 {[%clk 0:00:51]} 23. Rxc7 {[%clk 0:00:23]}  Be4 {[%clk 0:00:42]} 0-1


[Site "https://www.chess.com"]